fUSD/lending_fUSD_20260510
["ID","MTS","AMOUNT","RATE_DAILY","PERIOD"]
[421983509,1778402051000,-150.0,0.00013521,2]
[421983516,1778402051000,-2500.0,0.00013699,2]
[421983519,1778402051000,-166.66,0.00013836,2]
[421983510,1778402051000,-1324.66664805,0.00013578,2]
[421983512,1778402051000,-500.0,0.00013698,2]
[421983511,1778402051000,-500.0,0.00013698,2]
[421983515,1778402051000,-166.66,0.00013699,2]
[421983518,1778402051000,-348.09,0.00013805,2]
[421983514,1778402051000,-200.0,0.00013699,2]
[421983513,1778402051000,-500.0,0.00013698,2]
[421983517,1778402051000,-182.8380006,0.000137,2]
[421983521,1778402051000,-250.0,0.00014,2]
[421983525,1778402051000,-166.66,0.00014247,2]
[421983527,1778402051000,-1279.74940015,0.00014848,2]
[421983528,1778402051000,-409.55944384,0.00015601,2]
[421983529,1778402051000,-297.38,0.00015711,2]
[421983523,1778402051000,-150.0,0.00014145,2]
[421983524,1778402051000,-150.0,0.00014145,2]
[421983520,1778402051000,-166.66,0.00013973,2]
[421983530,1778402051000,-761.9,0.000159,2]
[421983555,1778402051000,-654.6,0.00022466,2]
[421983585,1778402051000,-158.7,0.00026063,2]
[421983558,1778402051000,-1279.74940015,0.00023986,2]
[421983583,1778402051000,-158.7,0.00026027,7]
[421983584,1778402051000,-170.92,0.00026057,2]
[421983591,1778402051000,-290.58,0.00026207,7]
[421983589,1778402051000,-290.58,0.00026158,30]
[421983594,1778402051000,-290.58,0.00026256,2]
[421983593,1778402051000,-338.33,0.00026243,30]
[421983592,1778402051000,-290.58,0.00026232,30]
[421983588,1778402051000,-290.58,0.00026134,7]
[421983595,1778402051000,-290.58,0.00026281,7]
[421983590,1778402051000,-290.58,0.00026183,2]
[421983596,1778402051000,-290.58,0.00026305,30]
[421983598,1778402051000,-290.58,0.00026354,7]
[421983597,1778402051000,-290.58,0.0002633,2]
[421983599,1778402051000,-290.58,0.00026379,30]
[421983603,1778402051000,-290.58,0.00026452,30]
[421983604,1778402051000,-225.55,0.00026464,30]
[421983605,1778402051000,-290.58,0.00026477,2]
[421983601,1778402051000,-290.58,0.00026403,2]
[421983602,1778402051000,-290.58,0.00026428,7]
[421983606,1778402051000,-225.55,0.00026486,2]
[421983609,1778402051000,-290.58,0.00026526,30]
[421983608,1778402051000,-225.55,0.00026508,7]
[421983560,1778402051000,-1000.0,0.00024658,2]
[421983579,1778402051000,-409.55944384,0.00025803,2]
[421983577,1778402051000,-338.33,0.00025667,7]
[421983600,1778402051000,-338.33,0.00026388,2]
[421983581,1778402051000,-5554.4749923,0.00025822,2]
[421983582,1778402051000,-338.33,0.00025955,2]
[421983559,1778402051000,-181.80940575,0.00024658,2]
[421983561,1778402051000,-338.33,0.00024658,2]
[421983562,1778402051000,-158.7,0.00024658,2]
[421983557,1778402051000,-24893.4298647,0.00023219,2]
[421983564,1778402051000,-435.88,0.00024658,2]
[421983563,1778402051000,-185.45,0.00024658,2]
[421983566,1778402051000,-338.33,0.00024802,7]
[421983571,1778402051000,-435.88,0.0002509,2]
[421983573,1778402051000,-435.88,0.00025234,7]
[421983567,1778402051000,-435.88,0.00024802,7]
[421983570,1778402051000,-338.33,0.0002509,2]
[421983574,1778402051000,-338.33,0.00025378,30]
[421983607,1778402051000,-290.58,0.00026501,7]
[421983572,1778402051000,-338.33,0.00025234,7]
[421983569,1778402051000,-435.88,0.00024946,30]
[421983575,1778402051000,-338.33,0.00025523,2]
[421983565,1778402051000,-256.4,0.00024658,2]
[421983568,1778402051000,-338.33,0.00024946,30]
[421983587,1778402051000,-290.58,0.0002611,2]
[421983580,1778402051000,-338.33,0.00025811,30]
[421983586,1778402051000,-338.33,0.00026099,7]
[421983578,1778402051000,-1078.74,0.00025786,2]
[421983576,1778402051000,-211.09,0.00025644,2]
[421983653,1778402052000,-17878.34,0.000302,7]
[421983651,1778402052000,-403.06441622,0.00030129,120]
[421983645,1778402052000,-1279.74940015,0.00028555,2]
[421983641,1778402052000,-214.7734975,0.00028,10]
[421983642,1778402052000,-214.7734975,0.00028,10]
[421983637,1778402052000,-17878.34,0.000274,7]
[421983643,1778402052000,-214.7734975,0.00028,10]
[421983646,1778402052000,-500.0,0.00028899,120]
[421983638,1778402052000,-401.44,0.000275,2]
[421983654,1778402052000,-152.0,0.0003022,7]
[421983644,1778402052000,-150.0,0.00028192,2]
[421983650,1778402052000,-211.09,0.00030082,120]
[421983658,1778402052000,-151.0,0.00030418,30]
[421983648,1778402052000,-500.0,0.00028899,120]
[421983656,1778402052000,-163.35770873,0.00030393,2]
[421983649,1778402052000,-150.0,0.00029601,2]
[421983652,1778402052000,-500.0,0.00030129,120]
[421983655,1778402052000,-152.0,0.00030269,7]
[421983657,1778402052000,-500.0,0.00030396,7]
[421983664,1778402052000,-267.09232479,0.000312,2]
[421983661,1778402052000,-409.55944384,0.00030903,2]
[421983663,1778402052000,-150.0,0.00031081,2]
[421983669,1778402052000,-150.0,0.00032163,2]
[421983636,1778402052000,-1204.32,0.00027397,10]
[421983647,1778402052000,-500.0,0.00028899,120]
[421983640,1778402052000,-232.2,0.00028,14]
[421983612,1778402052000,-290.58,0.0002655,2]
[421983635,1778402052000,-1445.18,0.00027397,10]
[421983610,1778402052000,-225.55,0.0002653,30]
[421983660,1778402052000,-154.0,0.00030613,5]
[421983617,1778402052000,-338.33,0.00026676,30]
[421983613,1778402052000,-225.55,0.00026553,2]
[421983615,1778402052000,-158.7,0.00026575,7]
[421983611,1778402052000,-338.33,0.00026532,7]
[421983616,1778402052000,-290.75,0.00026575,7]
[421983614,1778402052000,-225.73,0.00026575,7]
[421983625,1778402052000,-338.33,0.00027253,2]
[421983621,1778402052000,-214.7734975,0.00027,3]
[421983628,1778402052000,-1009.13,0.00027397,2]
[421983618,1778402052000,-338.33,0.0002682,2]
[421983619,1778402052000,-150.0,0.00026849,2]
[421983623,1778402052000,-214.7734975,0.00027,3]
[421983622,1778402052000,-214.7734975,0.00027,3]
[421983624,1778402052000,-338.33,0.00027108,30]
[421983627,1778402052000,-158.7,0.00027397,30]
[421983620,1778402052000,-338.33,0.00026964,7]
[421983626,1778402052000,-161.94,0.00027397,30]
[421983633,1778402052000,-1872.4,0.00027397,10]
[421983634,1778402052000,-1734.22,0.00027397,10]
[421983629,1778402052000,-166.99499127,0.00027397,2]
[421983631,1778402052000,-300.0,0.00027397,2]
[421983632,1778402052000,-2246.88,0.00027397,10]
[421983630,1778402052000,-1000.0,0.00027397,20]
[421983639,1778402052000,-500.0,0.000278,7]
[421983662,1778402052000,-214.7734975,0.00031,7]
[421983676,1778402052000,-153.83185987,0.00032418,30]
[421983666,1778402052000,-1000.0,0.000315,7]
[421983696,1778402052000,-409.55944384,0.00036004,2]
[421983697,1778402052000,-182.55779898,0.000372,120]
[421983698,1778402052000,-1279.74940015,0.00037693,2]
[421983700,1778402052000,-152.0,0.00038316,6]
[421983703,1778402052000,-246.4547,0.0003931,2]
[421983695,1778402052000,-17878.34,0.00036,7]
[421983668,1778402052000,-362.01,0.00032,7]
[421983699,1778402052000,-150.0,0.0003778,2]
[421983704,1778402052000,-17878.34,0.000394,7]
[421983702,1778402052000,-1000.0,0.000389,7]
[421983716,1778402052000,-155.0,0.00040836,120]
[421983706,1778402052000,-152.62418559,0.000395,30]
[421983713,1778402052000,-510.32733673,0.00040794,120]
[421983717,1778402052000,-158.0,0.00040836,120]
[421983710,1778402052000,-246.4548,0.00040269,2]
[421983714,1778402052000,-164.0,0.00040794,120]
[421983711,1778402052000,-1078.74,0.0004029,60]
[421983707,1778402052000,-152.62418559,0.000395,30]
[421983708,1778402052000,-150.0,0.00039669,2]
[421983715,1778402052000,-156.0,0.00040794,120]
[421983709,1778402052000,-150.0,0.0004,120]
[421983712,1778402052000,-2000.0,0.00040794,120]
[421983718,1778402052000,-158.0,0.00040836,120]
[421983719,1778402052000,-151.0,0.00040836,120]
[421983720,1778402052000,-152.0,0.00040912,7]
[421983694,1778402052000,-174.28,0.00036,30]
[421983701,1778402052000,-246.4547,0.00038351,2]
[421983705,1778402052000,-152.62418561,0.000395,30]
[421983692,1778402052000,-152.0,0.00035719,5]
[421983665,1778402052000,-151.0,0.00031418,30]
[421983667,1778402052000,-17878.34,0.000317,7]
[421983659,1778402052000,-152.0,0.00030526,3]
[421983670,1778402052000,-150.0,0.00032163,2]
[421983689,1778402052000,-150.0,0.00035,120]
[421983681,1778402052000,-1279.74940015,0.00033124,2]
[421983671,1778402052000,-150.0,0.00032163,2]
[421983674,1778402052000,-150.0,0.00032163,2]
[421983673,1778402052000,-150.0,0.00032163,2]
[421983675,1778402052000,-175.0,0.00032163,2]
[421983677,1778402052000,-268.0,0.00032418,30]
[421983679,1778402052000,-362.01,0.000328,7]
[421983672,1778402052000,-150.0,0.00032163,2]
[421983678,1778402052000,-150.0,0.00032636,2]
[421983680,1778402052000,-152.0,0.00033122,4]
[421983690,1778402052000,-1500.0,0.000352,7]
[421983683,1778402052000,-168.22,0.00033638,36]
[421983682,1778402052000,-281.0,0.00033503,2]
[421983684,1778402052000,-1138.218,0.00033638,36]
[421983691,1778402052000,-153.12,0.00035616,60]
[421983688,1778402052000,-211.09,0.00034521,120]
[421983687,1778402052000,-150.0,0.00034267,2]
[421983693,1778402052000,-150.0,0.00035981,2]
[421983685,1778402052000,-17878.34,0.000339,7]
[421983686,1778402052000,-214.7734975,0.00034,30]
[421983731,1778402053000,-150.0,0.00041652,120]
[421983732,1778402053000,-7158.54047624,0.00041691,120]
[421983729,1778402053000,-500.0,0.000411,120]
[421983735,1778402053000,-89.93250054,0.000417,10]
[421983737,1778402053000,-164.0,0.00041794,120]
[421983733,1778402053000,-380.52932165,0.00041691,120]
[421983730,1778402053000,-409.55944384,0.00041105,2]
[421983734,1778402053000,-166.50871446,0.00041691,120]
[421983721,1778402053000,-224.410212,0.00041021,54]
[421983725,1778402053000,-202.0,0.00041027,30]
[421983724,1778402053000,-521.92521811,0.00041027,2]
[421983727,1778402053000,-234.3,0.00041096,120]
[421983723,1778402053000,-173.30478189,0.00041027,2]
[421983728,1778402053000,-17878.34,0.000411,7]
[421983722,1778402053000,-211.59,0.00041027,120]
[421983736,1778402053000,-60.06749946,0.000417,10]
[421983726,1778402053000,-153.11928583,0.00041096,120]
[421983738,1778402053000,-156.0,0.00041794,120]
[421983742,1778402053000,-28.70479345,0.00041836,120]
[421983746,1778402053000,-231.44136926,0.00041899,120]
[421983739,1778402053000,-155.0,0.00041836,120]
[421983755,1778402053000,-2580.6376147,0.00041999,7]
[421983757,1778402053000,-309.3623853,0.00041999,7]
[421983756,1778402053000,-1003.6,0.00027397,10]
[421983753,1778402053000,-1669.797855,0.00041999,7]
[421983752,1778402053000,-4595.05162019,0.00041999,7]
[421983754,1778402053000,-1736.0,0.00041999,7]
[421983751,1778402053000,-500.0,0.00030396,120]
[421983750,1778402053000,-500.0,0.00013698,2]
[421983743,1778402053000,-122.29520655,0.00041836,120]
[421983758,1778402053000,-4740.80000006,0.00041999,7]
[421983747,1778402053000,-500.0,0.00041998,2]
[421983744,1778402053000,-1236.55863074,0.00041899,120]
[421983741,1778402053000,-158.0,0.00041836,120]
[421983745,1778402053000,-3532.0,0.00041899,120]
[421983748,1778402053000,-10291.18653074,0.00041999,7]
[421983740,1778402053000,-158.0,0.00041836,120]
[421983749,1778402053000,-500.0,0.00013698,2]
[421983761,1778402057000,-281.47888124,9.754e-05,2]
[421983760,1778402057000,-633.801,9.754e-05,2]
[421983762,1778402057000,-347.9192592,9.754e-05,2]
[421983759,1778402057000,-300.0,9.023e-05,2]
[421983764,1778402057000,-500.0,9.914e-05,2]
[421983766,1778402057000,-387.97625987,9.914e-05,2]
[421983767,1778402057000,-6548.83459969,9.915e-05,2]
[421983763,1778402057000,-500.0,9.754e-05,2]
[421983765,1778402057000,-500.0,9.914e-05,2]
[421983768,1778402213000,-150.0,8.955e-05,2]
[421983775,1778402213000,-9850.01,9.915e-05,2]
[421983774,1778402213000,-150.0,9.399e-05,2]
[421983770,1778402213000,-150.0,9.133e-05,2]
[421983771,1778402213000,-150.0,9.221e-05,2]
[421983772,1778402213000,-150.0,9.31e-05,2]
[421983773,1778402213000,-9250.01,9.915e-05,2]
[421983769,1778402213000,-150.0,9.044e-05,2]
[421983776,1778402214000,-500.0,8.867e-05,2]
[421983780,1778402214000,-150.0,9.914e-05,2]
[421983781,1778402214000,-500.0,9.914e-05,2]
[421983783,1778402214000,-500.0,9.914e-05,2]
[421983777,1778402214000,-201.41490132,9.754e-05,2]
[421983779,1778402214000,-500.0,9.754e-05,2]
[421983778,1778402214000,-3894.95185261,9.754e-05,2]
[421983782,1778402214000,-500.0,9.914e-05,2]
[421983789,1778402214000,-10000.01,9.915e-05,2]
[421983785,1778402214000,-500.0,9.914e-05,2]
[421983787,1778402214000,-500.0,9.914e-05,2]
[421983786,1778402214000,-500.0,9.914e-05,2]
[421983788,1778402214000,-1295.50948211,9.915e-05,2]
[421983792,1778402214000,-10000.01,9.915e-05,2]
[421983790,1778402214000,-10000.01,9.915e-05,2]
[421983791,1778402214000,-10000.01,9.915e-05,2]
[421983784,1778402214000,-458.13376396,9.914e-05,2]
[421983794,1778402215000,-100000.0,9.915e-05,2]
[421983793,1778402215000,-10000.01,9.915e-05,2]
[421983796,1778402225000,-250.0,8.867e-05,2]
[421983795,1778402225000,-300.0,8.867e-05,2]
[421983797,1778402225000,-894.09327818,8.867e-05,2]
[421983798,1778402225000,-250.0,8.885e-05,2]
[421983800,1778402225000,-5000.0,9.754e-05,2]
[421983799,1778402225000,-420.0,9.753e-05,2]
[421983801,1778402225000,-250.0,9.754e-05,2]
[421983804,1778402226000,-7431.9,9.915e-05,2]
[421983802,1778402226000,-2635.91672182,9.915e-05,2]
[421983803,1778402226000,-2568.11,9.481e-05,2]
[421983805,1778402226000,-10000.01,9.915e-05,2]
[421983810,1778402226000,-1200.0,9.753e-05,2]
[421983807,1778402226000,-500.0,9.914e-05,2]
[421983808,1778402226000,-500.0,9.914e-05,2]
[421983809,1778402226000,-9000.01,9.915e-05,2]
[421983806,1778402226000,-10000.01,9.915e-05,2]
[421983814,1778402227000,-10000.01,9.915e-05,2]
[421983813,1778402227000,-10000.01,9.915e-05,2]
[421983812,1778402227000,-8500.01,9.915e-05,2]
[421983811,1778402227000,-300.0,9.753e-05,2]
[421983818,1778402382000,-500.0,9.245e-05,2]
[421983819,1778402382000,-9500.01,9.905e-05,2]
[421983820,1778402382000,-150.0,8.955e-05,2]
[421983817,1778402382000,-10000.01,9.915e-05,2]
[421983821,1778402382000,-150.0,9.043e-05,2]
[421983824,1778402382000,-300.0,9.752e-05,2]
[421983822,1778402382000,-150.0,9.132e-05,2]
[421983823,1778402382000,-150.0,9.221e-05,2]
[421983825,1778402382000,-9100.01,9.905e-05,2]
[421983833,1778402383000,-717.42959745,9.914e-05,2]
[421983829,1778402383000,-6460.12311909,9.909e-05,2]
[421983831,1778402383000,-848.39434135,9.914e-05,2]
[421983830,1778402383000,-848.39434135,9.914e-05,2]
[421983832,1778402383000,-848.39434135,9.914e-05,2]
[421983828,1778402383000,-277.27425941,9.335e-05,2]
[421983826,1778402383000,-4451.24820824,9.905e-05,2]
[421983827,1778402383000,-5548.76179176,9.915e-05,2]
[421983843,1778402384000,-848.39434135,9.914e-05,2]
[421983842,1778402384000,-848.39434135,9.914e-05,2]
[421983838,1778402384000,-848.39434135,9.914e-05,2]
[421983839,1778402384000,-848.39434135,9.914e-05,2]
[421983841,1778402384000,-848.39434135,9.914e-05,2]
[421983835,1778402384000,-848.39434135,9.914e-05,2]
[421983837,1778402384000,-848.39434135,9.914e-05,2]
[421983836,1778402384000,-848.39434135,9.914e-05,2]
[421983834,1778402384000,-130.9647439,9.914e-05,2]
[421983846,1778402384000,-536.70750125,9.914e-05,2]
[421983840,1778402384000,-848.39434135,9.914e-05,2]
[421983844,1778402384000,-848.39434135,9.914e-05,2]
[421983849,1778402384000,-848.39434135,9.914e-05,2]
[421983848,1778402384000,-848.39434135,9.914e-05,2]
[421983859,1778402384000,-355.98540505,9.914e-05,2]
[421983856,1778402384000,-848.39434135,9.914e-05,2]
[421983858,1778402384000,-848.39434135,9.914e-05,2]
[421983845,1778402384000,-848.39434135,9.914e-05,2]
[421983855,1778402384000,-848.39434135,9.914e-05,2]
[421983854,1778402384000,-848.39434135,9.914e-05,2]
[421983857,1778402384000,-848.39434135,9.914e-05,2]
[421983851,1778402384000,-848.39434135,9.914e-05,2]
[421983852,1778402384000,-848.39434135,9.914e-05,2]
[421983847,1778402384000,-311.6868401,9.914e-05,2]
[421983850,1778402384000,-848.39434135,9.914e-05,2]
[421983853,1778402384000,-848.39434135,9.914e-05,2]
[421983860,1778402385000,17086.91,8.907e-05,2]
[421983866,1778402396000,-848.39434135,9.914e-05,2]
[421983861,1778402396000,-492.4089363,9.914e-05,2]
[421983862,1778402396000,-848.39434135,9.914e-05,2]
[421983863,1778402396000,-848.39434135,9.914e-05,2]
[421983864,1778402396000,-848.39434135,9.914e-05,2]
[421983867,1778402396000,-848.39434135,9.914e-05,2]
[421983869,1778402396000,-848.39434135,9.914e-05,2]
[421983868,1778402396000,-848.39434135,9.914e-05,2]
[421983871,1778402396000,-848.39434135,9.914e-05,2]
[421983872,1778402396000,-848.39434135,9.914e-05,2]
[421983873,1778402396000,-175.26330885,9.914e-05,2]
[421983870,1778402396000,-848.39434135,9.914e-05,2]
[421983865,1778402396000,-848.39434135,9.914e-05,2]
[421983876,1778402706000,-673.1310325,9.914e-05,2]
[421983878,1778402706000,-848.39434135,9.914e-05,2]
[421983877,1778402706000,-848.39434135,9.914e-05,2]
[421983879,1778402706000,-848.39434135,9.914e-05,2]
[421983880,1778402706000,-848.39434135,9.914e-05,2]
[421983882,1778402706000,-848.39434135,9.914e-05,2]
[421983883,1778402706000,-848.39434135,9.914e-05,2]
[421983884,1778402706000,-838.04806889,9.914e-05,2]
[421983885,1778402706000,-838.04806889,9.914e-05,2]
[421983886,1778402706000,-838.04806889,9.914e-05,2]
[421983888,1778402706000,-35.92630249,9.914e-05,2]
[421983887,1778402706000,-838.04806889,9.914e-05,2]
[421983881,1778402706000,-848.39434135,9.914e-05,2]
[421983902,1778402707000,-838.04806889,9.914e-05,2]
[421983908,1778402707000,-838.04806889,9.914e-05,2]
[421983909,1778402707000,-838.04806889,9.914e-05,2]
[421983907,1778402707000,-838.04806889,9.914e-05,2]
[421983905,1778402707000,-838.04806889,9.914e-05,2]
[421983901,1778402707000,-20.64052419,9.914e-05,2]
[421983904,1778402707000,-838.04806889,9.914e-05,2]
[421983903,1778402707000,-838.04806889,9.914e-05,2]
[421983899,1778402707000,-838.04806889,9.914e-05,2]
[421983891,1778402707000,-838.04806889,9.914e-05,2]
[421983898,1778402707000,-838.04806889,9.914e-05,2]
[421983900,1778402707000,-817.4075447,9.914e-05,2]
[421983895,1778402707000,-838.04806889,9.914e-05,2]
[421983897,1778402707000,-838.04806889,9.914e-05,2]
[421983906,1778402707000,-838.04806889,9.914e-05,2]
[421983892,1778402707000,-838.04806889,9.914e-05,2]
[421983890,1778402707000,-838.04806889,9.914e-05,2]
[421983893,1778402707000,-838.04806889,9.914e-05,2]
[421983889,1778402707000,-802.1217664,9.914e-05,2]
[421983896,1778402707000,-838.04806889,9.914e-05,2]
[421983910,1778402707000,-838.04806889,9.914e-05,2]
[421983894,1778402707000,-838.04806889,9.914e-05,2]
[421983911,1778402707000,-838.04806889,9.914e-05,2]
[421983912,1778402707000,-838.04806889,9.914e-05,2]
[421983930,1778402707000,-809.92778712,9.914e-05,2]
[421983931,1778402707000,-841.85737831,9.914e-05,2]
[421983933,1778402707000,-841.85737831,9.914e-05,2]
[421983932,1778402707000,-841.85737831,9.914e-05,2]
[421983929,1778402707000,-161.92,9.847e-05,2]
[421983927,1778402707000,-841.85737831,9.914e-05,2]
[421983928,1778402707000,-31.92959119,9.914e-05,2]
[421983926,1778402707000,-841.85737831,9.914e-05,2]
[421983925,1778402707000,-841.85737831,9.914e-05,2]
[421983924,1778402707000,-841.85737831,9.914e-05,2]
[421983922,1778402707000,-841.85737831,9.914e-05,2]
[421983920,1778402707000,-216.2991487,9.914e-05,2]
[421983921,1778402707000,-841.85737831,9.914e-05,2]
[421983917,1778402707000,-838.04806889,9.914e-05,2]
[421983919,1778402707000,-838.04806889,9.914e-05,2]
[421983918,1778402707000,-838.04806889,9.914e-05,2]
[421983915,1778402707000,-1040.2580544,9.891e-05,2]
[421983916,1778402707000,-77.20735087,9.914e-05,2]
[421983914,1778402707000,-227.17,9.708e-05,2]
[421983913,1778402707000,-760.84071802,9.914e-05,2]
[421983923,1778402707000,-841.85737831,9.914e-05,2]
[421983934,1778402708000,-6502.59007795,9.915e-05,2]
[421983935,1778402708000,300.0,8.906e-05,2]
[421983937,1778402708000,-9580.01,9.915e-05,2]
[421983936,1778402708000,-420.0,9.797e-05,2]
[421983938,1778402708000,-10000.01,9.915e-05,2]
[421983939,1778402708000,6248.645483,0.0002527,120]
[421983948,1778402709000,-10000.01,9.915e-05,2]
[421983947,1778402709000,-9205.8204,9.915e-05,2]
[421983946,1778402709000,-794.1896,9.815e-05,2]
[421983945,1778402709000,-10000.01,9.915e-05,2]
[421983944,1778402709000,-10000.01,9.915e-05,2]
[421983943,1778402709000,150.0,8.995e-05,2]
[421983942,1778402709000,-10000.01,9.915e-05,2]
[421983941,1778402709000,-10000.01,9.915e-05,2]
[421983940,1778402709000,-10000.01,9.915e-05,2]
[421983949,1778402710000,-492.4089363,9.915e-05,2]
[421983952,1778402710000,-373.1310325,9.915e-05,2]
[421983951,1778402710000,-300.0,9.913e-05,2]
[421983950,1778402710000,-673.1310325,9.915e-05,2]
[421983954,1778402711000,-673.1310325,9.79e-05,2]
[421983953,1778402711000,158.55,7.832e-05,2]
[421983955,1778402712000,-673.1310325,9.79e-05,2]
[421983961,1778402805000,280.97,5.032e-05,2]
[421983957,1778402805000,-549.027935,9.79e-05,2]
[421983958,1778402805000,-124.1030975,9.915e-05,2]
[421983959,1778402805000,-673.1310325,9.915e-05,2]
[421983960,1778402805000,280.97,4.78e-05,2]
[421983963,1778402805000,280.97,5.535e-05,2]
[421983962,1778402805000,280.97,5.284e-05,2]
[421983970,1778402805000,280.97,7.296e-05,2]
[421983966,1778402805000,280.97,6.29e-05,2]
[421983965,1778402805000,280.97,6.038e-05,2]
[421983968,1778402805000,280.97,6.793e-05,2]
[421983967,1778402805000,280.97,6.541e-05,2]
[421983969,1778402805000,280.97,7.045e-05,2]
[421983964,1778402805000,280.97,5.787e-05,2]
[421983971,1778402806000,280.97,7.548e-05,2]
[421983972,1778402806000,280.97,7.799e-05,2]
[421983975,1778402806000,176.91,8.554e-05,2]
[421983974,1778402806000,280.97,8.303e-05,2]
[421983973,1778402806000,280.97,8.051e-05,2]
[421983976,1778402806000,104.06,8.554e-05,2]
[421983979,1778402806000,-280.97,9.309e-05,2]
[421983977,1778402806000,280.97,8.806e-05,2]
[421983980,1778402806000,-111.1910325,9.561e-05,2]
[421983981,1778402806000,-169.7789675,9.561e-05,2]
[421983982,1778402806000,-300.0,9.79e-05,2]
[421983983,1778402806000,-203.352065,9.915e-05,2]
[421983978,1778402806000,-280.97,9.057e-05,2]
[421983984,1778402807000,-673.1310325,9.915e-05,2]
[421983985,1778402807000,-673.1310325,9.915e-05,2]
[421983987,1778402807000,-673.1310325,9.915e-05,2]
[421983986,1778402807000,-673.1310325,9.915e-05,2]
[421983988,1778402807000,844.04,8.061e-05,2]
[421983990,1778402807000,250.0,4.906e-05,2]
[421983991,1778402807000,250.0,5.284e-05,2]
[421983993,1778402807000,-523.1310325,9.915e-05,2]
[421983992,1778402807000,-150.0,9.79e-05,2]
[421983989,1778402807000,250.0,5.258e-05,2]
[421983998,1778402808000,-440.46953686,9.914e-05,2]
[421983999,1778402808000,-232.66149564,9.914e-05,2]
[421983997,1778402808000,-155.10766376,9.914e-05,2]
[421983996,1778402808000,-518.02336874,9.914e-05,2]
[421983995,1778402808000,-77.55383188,9.914e-05,2]
[421983994,1778402808000,-595.57720062,9.914e-05,2]
[421984001,1778402963000,-362.91570498,9.914e-05,2]
[421984003,1778402963000,-285.3618731,9.914e-05,2]
[421984004,1778402963000,-387.7691594,9.914e-05,2]
[421984002,1778402963000,-310.21532752,9.914e-05,2]
[421984007,1778402964000,-673.1310325,9.915e-05,2]
[421984006,1778402964000,-173.1310325,9.915e-05,2]
[421984005,1778402964000,-500.0,9.914e-05,2]
[421984014,1778402965000,-673.1310325,9.915e-05,2]
[421984013,1778402965000,-673.1310325,9.915e-05,2]
[421984012,1778402965000,-673.1310325,9.915e-05,2]
[421984011,1778402965000,-673.1310325,9.915e-05,2]
[421984010,1778402965000,-673.1310325,9.915e-05,2]
[421984008,1778402965000,-673.1310325,9.915e-05,2]
[421984009,1778402965000,169.25,8.219e-05,2]
[421984017,1778402966000,-673.1310325,9.915e-05,2]
[421984016,1778402966000,-673.1310325,9.915e-05,2]
[421984020,1778402966000,5000.01,7.834e-05,2]
[421984015,1778402966000,-673.1310325,9.915e-05,2]
[421984018,1778402966000,2851.69,7.834e-05,2]
[421984022,1778402966000,10.53,7.834e-05,2]
[421984021,1778402966000,5000.01,7.834e-05,2]
[421984019,1778402966000,5000.01,7.834e-05,2]
[421984024,1778402967000,-549.027935,9.057e-05,2]
[421984023,1778402967000,35918.9,7.842e-05,2]
[421984098,1778403123000,-125.083805,9.914e-05,2]
[421984097,1778403123000,-423.94413,9.914e-05,2]
[421984096,1778403123000,250.0,5.498e-05,2]
[421984094,1778403123000,-472.972065,9.057e-05,2]
[421984095,1778403123000,-76.05587,9.914e-05,2]
[421984100,1778403124000,-174.11174,9.914e-05,2]
[421984099,1778403124000,-374.916195,9.914e-05,2]
[421984102,1778403124000,420.0,8.616e-05,2]
[421984103,1778403124000,-549.027935,9.478e-05,2]
[421984101,1778403124000,300.0,7.833e-05,2]
[421984106,1778403125000,-362.91570498,9.815e-05,2]
[421984105,1778403125000,-362.91570498,9.915e-05,2]
[421984104,1778403125000,-37.972065,9.478e-05,2]
[421984116,1778403126000,-200.0,0.0001,2]
[421984107,1778403126000,300.0,7.833e-05,2]
[421984108,1778403126000,300.0,8.616e-05,2]
[421984109,1778403126000,250.0,6.048e-05,2]